bitfinex/quotes_SOLUSD_20241016
["timestamp","ask_amount","ask_price","bid_price","bid_amount"]
[1729088403487,15.0527,156.41,156.35,6.3956]
[1729088403799,15.0527,156.41,156.33,22.3871]
[1729088403992,15.0527,156.41,156.34,6.3961]
[1729088404306,6.394,156.4,156.34,6.3961]
[1729088405281,6.6603273,156.45,156.35,15.989]
[1729088405484,6.6603273,156.45,156.38,6.3946]
[1729088405485,6.3926,156.44,156.38,6.3946]
[1729088405789,6.6603273,156.45,156.4,6.3938]
[1729088405790,6.3918,156.45,156.4,6.3938]
[1729088406097,15.669,156.47,156.33,61.19427804]
[1729088406098,15.669,156.47,156.43,6.3922]
[1729088406276,15.669,156.47,156.36,61.19427804]
[1729088406277,6.1317,156.51,156.42,15.9824]
[1729088406480,6.3906,156.48,156.42,15.9824]
[1729088406695,6.3906,156.48,156.42,22.3751]
[1729088406879,6.2317,156.51,156.4,6.3938]
[1729088407081,6.3915,156.46,156.4,6.3938]
[1729088407290,6.1317,156.51,156.41,6.3933]
[1729088407500,6.1317,156.51,156.41,15.9833]
[1729088407703,6.1317,156.51,156.43,15.9809]
[1729088407912,6.3898,156.5,156.43,15.9809]
[1729088408082,6.3903,156.49,156.43,15.9809]
[1729088408381,6.1317,156.51,156.43,22.3732]
[1729088408577,6.3902,156.49,156.44,6.3921]
[1729088408782,6.1317,156.51,156.39,67.53607804]
[1729088408992,6.3911,156.47,156.41,6.3933]
[1729088409206,6.1317,156.51,156.4,15.9844]
[1729088409207,6.3919,156.45,156.4,15.9844]
[1729088409404,6.1317,156.51,156.4,15.9844]
[1729088409611,6.1317,156.51,156.43,15.9811]
[1729088409784,6.1317,156.51,156.46,6.3912]
[1729088409984,6.1317,156.51,156.43,15.9811]
[1729088410279,6.3906,156.48,156.43,15.9811]
[1729088410477,6.3911,156.47,156.41,6.3934]
[1729088410683,6.1317,156.51,156.38,61.19427804]
[1729088410909,6.3901,156.49,156.44,6.3919]
[1729088411109,6.3898,156.5,156.44,22.3726]
[1729088411407,6.1317,156.51,156.38,61.19427804]
[1729088411613,22.2054,156.51,156.4,22.3774]
[1729088412107,6.3926,156.43,156.37,22.3823]
[1729088412296,6.3934,156.42,156.35,6.3955]
[1729088412490,0.1,156.48,156.33,61.19427804]
[1729088412693,0.1,156.5,156.36,61.19427804]
[1729088412895,6.3919,156.45,156.39,15.9856]
[1729088413093,16.075,156.5,156.39,22.3795]
[1729088413412,6.3918,156.45,156.4,6.3938]
[1729088414113,6.3901,156.5,156.44,6.3921]
[1729088414313,6.391,156.47,156.39,43.776884]
[1729088414609,6.3906,156.48,156.42,6.3929]
[1729088415382,6.1317,156.51,156.39,43.776884]
[1729088415702,38.6717455,156.56,156.39,43.776884]
[1729088415703,22.1208,156.55,156.46,6.3914]
[1729088415899,6.3894,156.51,156.46,6.3914]
[1729088416317,6.3894,156.51,156.45,15.9789]
[1729088416500,6.3899,156.5,156.45,15.9789]
[1729088417386,6.3902,156.49,156.43,6.3925]
[1729088417586,6.3902,156.49,156.44,6.392]
[1729088417893,6.3898,156.5,156.44,6.392]
[1729088418110,22.2208,156.55,156.44,15.9798]
[1729088418407,22.2208,156.55,156.44,22.3719]
[1729088418408,6.3899,156.5,156.44,22.3719]
[1729088418809,15.9719,156.53,156.43,6.3925]
[1729088419023,6.3923,156.44,156.39,6.3941]
[1729088419220,0.1,156.52,156.36,99.81039586]
[1729088419221,6.3933,156.42,156.36,6.6335]
[1729088419508,0.1,156.5,156.36,6.3954]
[1729088419509,6.3935,156.41,156.36,6.3954]
[1729088420085,22.673,156.46,156.32,67.46479586]
[1729088420086,15.9812,156.44,156.32,6.2645]
[1729088420323,6.3947,156.38,156.33,6.3963]
[1729088420527,6.3947,156.38,156.32,6.397]
[1729088420685,6.3956,156.36,156.31,15.9929]
[1729088420890,6.396,156.35,156.29,6.3982]
[1729088421091,23.776884,156.39,156.28,15.9968]
[1729088421305,6.3971,156.32,156.26,6.3995]
[1729088421699,16.7379,156.38,156.24,22.3634]
[1729088421700,16.8379,156.38,156.24,22.3634]
[1729088421903,6.3977,156.31,156.24,22.4003]
[1729088422102,6.3977,156.31,156.24,16.0002]
[1729088422296,6.3971,156.32,156.24,16.0002]
[1729088422492,15.9879,156.37,156.24,22.4002]
[1729088422714,6.3975,156.31,156.25,6.3999]
[1729088422926,6.3961,156.35,156.28,6.3987]
[1729088423414,6.3961,156.35,156.29,6.3983]
[1729088423588,6.3951,156.37,156.3,6.3977]
[1729088423788,15.9845,156.41,156.27,15.9978]
[1729088423789,6.3938,156.41,156.35,6.3958]
[1729088424028,6.393,156.42,156.36,6.3953]
[1729088424315,6.3926,156.43,156.37,6.3949]
[1729088424905,16.6021,156.48,156.39,6.3941]
[1729088425134,12.9856,156.46,156.39,6.3941]
[1729088425293,6.5939,156.46,156.37,6.3947]
[1729088425491,6.3928,156.43,156.37,6.3947]
[1729088426093,16.6021,156.48,156.35,61.20029586]
[1729088426309,16.6021,156.48,156.38,15.9857]
[1729088426904,16.7021,156.48,156.35,61.20029586]
[1729088427118,6.3935,156.41,156.34,22.3857]
[1729088427328,15.9816,156.43,156.32,6.3971]
[1729088427499,15.9816,156.43,156.3,15.9939]
[1729088427799,6.3951,156.37,156.31,6.3975]
[1729088428398,16.0816,156.43,156.3,15.9939]
[1729088428399,6.3946,156.39,156.3,15.9939]
[1729088428834,15.9816,156.43,156.34,6.3961]
[1729088428835,6.3939,156.4,156.34,6.3961]
[1729088429299,6.3936,156.41,156.35,6.3958]
[1729088429509,6.3939,156.4,156.34,6.3962]
[1729088429822,23.776884,156.44,156.32,15.9919]
[1729088430020,6.3943,156.39,156.33,6.3967]
[1729088430348,6.395,156.38,156.32,15.9919]
[1729088430512,6.395,156.38,156.32,22.3889]
[1729088430827,6.3952,156.37,156.32,15.9919]
[1729088430996,39.855684,156.46,156.35,6.3957]
[1729088431398,15.9814,156.44,156.32,15.9919]
[1729088431626,6.3947,156.38,156.33,6.3965]
[1729088431826,6.3947,156.38,156.32,22.3889]
[1729088432234,6.3955,156.36,156.32,15.9919]
[1729088432414,6.3947,156.38,156.33,6.3967]
[1729088432804,6.3947,156.38,156.32,22.3889]
[1729088433020,6.3954,156.37,156.32,15.9919]
[1729088433328,6.3954,156.37,156.32,22.3889]
[1729088434433,6.3943,156.39,156.34,15.99]
[1729088434732,16.7021,156.48,156.3,93.26005654]
[1729088434733,6.3933,156.42,156.3,93.26005654]
[1729088434940,6.3926,156.43,156.38,6.3946]
[1729088435510,16.6021,156.48,156.39,6.3941]
[1729088435725,6.3922,156.44,156.38,6.3945]
[1729088436127,6.3927,156.43,156.36,15.9882]
[1729088436508,6.3934,156.41,156.36,22.3833]
[1729088436927,6.3939,156.4,156.36,15.9882]
[1729088438006,6.3935,156.41,156.36,22.3836]
[1729088438207,6.393,156.43,156.38,6.3945]
[1729088438427,6.3925,156.44,156.39,6.3942]
[1729088438632,6.3917,156.46,156.36,61.27105654]
[1729088438932,6.0877,156.51,156.42,6.3929]
[1729088438933,6.3913,156.47,156.42,6.3929]
[1729088439319,22.0615,156.51,156.4,15.9839]
[1729088439505,22.0615,156.51,156.37,23.776884]
[1729088439506,22.0615,156.51,156.42,15.9821]
[1729088439841,6.3894,156.51,156.46,6.3912]
[1729088440009,13.05798915,156.56,156.43,23.776884]
[1729088440211,6.4189,156.56,156.48,6.3903]
[1729088440438,6.3889,156.52,156.47,6.3909]
[1729088441123,6.3886,156.53,156.46,15.9779]
[1729088441312,6.4189,156.56,156.46,15.9779]
[1729088441512,6.389,156.52,156.47,6.3908]
[1729088441811,6.4189,156.56,156.46,15.9779]
[1729088442144,6.391,156.47,156.42,6.393]
[1729088442311,6.5189,156.56,156.35,6.5895]
[1729088442312,0.2,156.52,156.35,6.4895]
[1729088442512,6.3925,156.44,156.38,6.3946]
[1729088442721,6.3929,156.43,156.38,6.3946]
[1729088443026,15.9735,156.51,156.39,15.9848]
[1729088443419,6.391,156.47,156.42,6.393]
[1729088443624,6.3898,156.5,156.39,61.27105654]
[1729088443821,6.3898,156.5,156.45,6.3916]
[1729088444225,6.3892,156.52,156.46,6.3912]
[1729088444528,15.9707,156.54,156.45,6.3917]
[1729088444529,6.3898,156.5,156.45,6.3917]
[1729088445115,0.1,156.54,156.37,43.776884]
[1729088445320,6.3918,156.45,156.4,22.3781]
[1729088445917,6.3915,156.46,156.4,22.3781]
[1729088446133,6.391,156.47,156.42,6.3927]
[1729088447435,6.3914,156.46,156.41,6.3933]
[1729088448055,0.1,156.52,156.4,15.9844]
[1729088448340,15.978,156.47,156.37,15.9875]
[1729088448648,15.978,156.47,156.37,22.3825]
[1729088448649,6.393,156.42,156.37,22.3825]
[1729088449038,15.978,156.47,156.37,15.9875]
[1729088449349,6.3938,156.4,156.36,6.3954]
[1729088449541,6.3935,156.41,156.36,6.3954]
[1729088449738,15.98,156.45,156.35,6.3958]
[1729088449949,38.4689,156.46,156.31,6.519]
[1729088450121,6.3958,156.36,156.31,15.9934]
[1729088450737,15.9844,156.41,156.31,22.3907]
[1729088450926,6.3959,156.35,156.31,15.9934]
[1729088452146,15.9844,156.41,156.31,15.9934]
[1729088452522,6.3962,156.35,156.31,15.9934]
[1729088452728,6.3964,156.34,156.29,6.398]
[1729088453345,6.3971,156.32,156.28,22.3954]
[1729088453649,6.397,156.33,156.28,22.3954]
[1729088454641,6.64439662,156.43,156.29,43.776884]
[1729088454828,6.3117,156.46,156.33,61.31003502]
[1729088455046,32.0495,156.5,156.33,67.61213502]
[1729088455237,15.9789,156.46,156.38,6.3945]
[1729088455426,6.3923,156.44,156.38,6.3945]
[1729088455758,6.3923,156.44,156.39,6.394]
[1729088456052,6.3915,156.46,156.41,6.3934]
[1729088456419,15.9758,156.49,156.36,61.31003502]
[1729088456420,6.3905,156.49,156.43,6.3925]
[1729088456622,6.391,156.47,156.42,22.3754]
[1729088457039,6.391,156.47,156.42,15.9825]
[1729088457439,6.3915,156.46,156.42,15.9825]
[1729088458454,6.391,156.47,156.42,22.3754]
[1729088458759,23.776884,156.51,156.39,15.9852]
[1729088459124,6.3918,156.45,156.41,6.3934]
[1729088459436,6.3925,156.44,156.39,22.3794]
[1729088460448,23.776884,156.48,156.38,6.3946]
[1729088460758,6.3905,156.49,156.43,6.3923]
[1729088461134,6.6558,156.52,156.45,6.3917]
[1729088461135,6.39,156.5,156.45,6.3917]
[1729088461341,6.6558,156.52,156.45,6.3917]
[1729088461644,6.391,156.47,156.43,6.3925]
[1729088461858,6.391,156.47,156.42,6.393]
[1729088462340,6.6558,156.52,156.41,15.9832]
[1729088462544,6.3903,156.49,156.41,15.9832]
[1729088462726,6.6558,156.52,156.41,15.9832]
[1729088463048,31.6149,156.53,156.44,15.9805]
[1729088463049,15.6426,156.53,156.44,15.9805]
[1729088463348,6.3897,156.51,156.46,6.3911]
[1729088463646,6.3894,156.51,156.46,6.3913]
[1729088465134,15.6426,156.53,156.44,22.3724]
[1729088465135,6.3901,156.5,156.44,22.3724]
[1729088465336,15.6426,156.53,156.44,15.9805]
[1729088465535,23.776884,156.52,156.41,15.9833]
[1729088465748,6.3914,156.46,156.41,22.3766]
[1729088466054,6.3918,156.45,156.41,15.9833]
[1729088466359,6.3926,156.43,156.38,22.3809]
[1729088466555,6.3922,156.44,156.39,6.3942]
[1729088467439,6.3934,156.42,156.37,6.3949]
[1729088467755,6.3939,156.4,156.35,22.3852]
[1729088467957,6.3947,156.38,156.33,12.6985]
[1729088468131,6.396,156.35,156.31,15.9928]
[1729088468333,6.396,156.35,156.3,6.3976]
[1729088468553,6.3963,156.34,156.29,12.898]
[1729088468862,6.3968,156.33,156.28,22.3949]
[1729088469025,6.3973,156.32,156.28,15.9965]
[1729088469231,23.776884,156.37,156.28,15.9965]
[1729088469427,15.9897,156.35,156.26,6.3995]
[1729088469626,23.776884,156.37,156.25,15.9991]
[1729088469831,48.5535,156.43,156.27,61.31003502]
[1729088470057,6.3948,156.38,156.33,6.3966]
[1729088470638,6.3943,156.39,156.33,6.3966]
[1729088470839,6.3939,156.4,156.34,6.3961]
[1729088471247,6.4896,156.42,156.34,6.3961]
[1729088471248,6.3944,156.39,156.34,6.3961]
[1729088472532,6.3923,156.44,156.39,6.3942]
[1729088473066,6.0082,156.46,156.33,99.81973502]
[1729088473236,6.3924,156.44,156.39,15.9856]
[1729088473437,6.1082,156.46,156.36,15.9886]
[1729088473737,23.976884,156.45,156.3,61.31003502]
[1729088473945,23.976884,156.45,156.33,6.3967]
[1729088473946,15.9816,156.43,156.33,6.3967]
[1729088474236,6.3952,156.37,156.32,22.3888]
[1729088474444,6.3944,156.39,156.34,6.3961]
[1729088474643,6.3944,156.39,156.32,15.9918]
[1729088474837,6.3947,156.38,156.33,6.3966]
[1729088475062,6.3951,156.37,156.32,22.3888]
[1729088475760,15.9863,156.39,156.29,15.9949]
[1729088475941,23.776884,156.37,156.26,15.9989]
[1729088476141,6.397,156.33,156.28,6.3984]
[1729088476367,6.3971,156.32,156.28,6.3984]
[1729088477353,6.3963,156.34,156.28,15.9961]
[1729088477555,6.3972,156.32,156.28,15.9961]
[1729088477747,6.3972,156.32,156.28,22.3948]
[1729088478061,6.3962,156.35,156.3,6.3979]
[1729088478233,6.3963,156.34,156.28,15.9961]
[1729088478431,16.0574,156.38,156.28,15.9961]
[1729088478656,23.776884,156.36,156.25,22.5382]
[1729088478946,6.3975,156.31,156.27,6.3991]
[1729088479453,15.9878,156.37,156.27,6.3991]
[1729088479454,15.9878,156.37,156.27,15.9973]
[1729088479658,6.3967,156.33,156.29,6.3982]
[1729088479850,6.3974,156.32,156.27,22.396]
[1729088480454,6.3168,156.37,156.25,6.5383]
[1729088480647,6.3168,156.37,156.29,15.9953]
[1729088480851,6.3168,156.37,156.25,22.5373]
[1729088481054,23.776884,156.36,156.27,6.3991]
[1729088481254,23.776884,156.36,156.25,15.999]
[1729088481457,6.3978,156.31,156.26,6.3992]
[1729088482845,6.3972,156.32,156.27,6.3991]
[1729088483253,39.766384,156.36,156.27,6.3991]
[1729088483442,6.3975,156.31,156.27,6.3991]
[1729088483764,15.9936,156.32,156.23,0.6396282]
[1729088484069,6.3996,156.26,156.23,0.6396282]
[1729088484671,6.4004,156.24,156.23,0.6396282]
[1729088485852,15.9961,156.29,156.23,0.6396282]
[1729088486242,6.4004,156.24,156.23,0.6396282]
[1729088486448,6.64359022,156.33,156.23,0.6396282]
[1729088486641,0.1,156.31,156.23,0.6396282]
[1729088486857,6.4004,156.24,156.23,0.6396282]
[1729088487345,0.2,156.31,156.23,0.6396282]
[1729088487756,6.4003,156.25,156.23,0.6396282]
[1729088488168,6.4004,156.24,156.23,0.6396282]
[1729088488851,6.3991,156.28,156.23,7.0403282]
[1729088489062,22.2652,156.3,156.23,0.6396282]
[1729088489440,6.3988,156.28,156.24,22.4005]
[1729088489746,22.2652,156.3,156.24,16.0002]
[1729088489943,6.3987,156.28,156.24,16.0002]
[1729088490349,6.3988,156.28,156.23,7.0400282]
[1729088490947,22.2652,156.3,156.23,0.6396282]
[1729088491355,23.776884,156.29,156.23,0.6396282]
[1729088491670,6.4004,156.24,156.23,0.6396282]
[1729088491976,23.776884,156.29,156.23,0.6396282]
[1729088492156,6.4004,156.24,156.23,0.6396282]
[1729088492359,6.3999,156.26,156.23,0.6396282]
[1729088492652,6.4,156.25,156.23,0.6396282]
[1729088492863,6.4004,156.24,156.23,0.6396282]
[1729088493251,30.177284,156.24,156.23,0.6396282]
[1729088493659,6.4004,156.24,156.23,0.6396282]
[1729088494155,30.177284,156.24,156.23,0.6396282]
[1729088494355,6.4004,156.24,156.23,0.6396282]
[1729088495376,30.177284,156.24,156.23,0.6396282]
[1729088495870,30.277284,156.24,156.23,0.6396282]
[1729088496449,30.377284,156.24,156.23,0.6396282]
[1729088496647,30.277284,156.24,156.23,0.6396282]
[1729088496972,30.377284,156.24,156.23,0.6396282]
[1729088497153,30.377284,156.24,156.23,2.82e-05]
[1729088497744,23.776884,156.18,156.07,16.6572282]
[1729088497944,6.4052,156.13,156.07,16.6572282]
[1729088498274,16.0074,156.18,156.09,16.0157]
[1729088498568,15.1505,156.2,156.07,32.6749282]
[1729088498769,6.4032,156.18,156.13,6.4048]
[1729088498952,6.4037,156.16,156.11,22.4193]
[1729088499154,23.776884,156.19,156.11,16.0137]
[1729088499378,6.4037,156.16,156.11,22.4193]
[1729088499663,6.4037,156.16,156.11,16.0137]
[1729088499873,6.4032,156.17,156.12,6.4052]
[1729088500875,6.63428183,156.23,156.12,32.0259]
[1729088501079,6.3709,156.27,156.13,83.82816716]
[1729088501249,32.2985,156.29,156.21,6.4015]
[1729088501446,6.4,156.25,156.21,6.4015]
[1729088501661,6.4013,156.22,156.17,6.4032]
[1729088501863,6.4021,156.2,156.16,16.0083]
[1729088502058,15.9987,156.27,156.16,16.0083]
[1729088502365,16.0009,156.25,156.15,6.404]
[1729088502568,6.4021,156.2,156.15,6.404]
[1729088502991,6.4025,156.19,156.14,6.4044]
[1729088503980,23.776884,156.24,156.14,6.4044]
[1729088504189,23.776884,156.22,156.13,16.012]
[1729088504398,30.217784,156.22,156.13,16.012]
[1729088504691,23.776884,156.2,156.1,16.015]
[1729088504893,23.776884,156.2,156.07,23.0650282]
[1729088504894,6.4056,156.12,156.07,23.0650282]
[1729088505067,8.58110426,156.17,156.07,0.6396282]
[1729088505262,15.1937,156.19,156.07,0.6396282]
[1729088505487,6.4041,156.15,156.1,22.4207]
[1729088505669,23.776884,156.18,156.07,0.6396282]
[1729088505872,39.784784,156.18,156.07,16.6577282]
[1729088506073,23.776884,156.18,156.1,16.0153]
[1729088506389,38.4481,156.22,156.07,0.6396282]
[1729088506390,6.4409,156.22,156.07,0.6396282]
[1729088506778,6.4409,156.22,156.07,0.8396282]
[1729088506979,6.4409,156.22,156.07,0.7396282]
[1729088507187,23.776884,156.23,156.08,23.776884]
[1729088507385,6.4021,156.2,156.15,6.4037]
[1729088507579,6.4021,156.2,156.09,20.0]
[1729088507580,6.2921,156.26,156.11,23.776884]
[1729088507783,6.2921,156.26,156.15,16.0092]
[1729088508087,6.4028,156.18,156.13,6.4045]
[1729088508263,6.4037,156.16,156.12,16.0131]
[1729088508467,16.0048,156.21,156.1,6.3543]
[1729088508667,31.5221,156.19,156.09,16.0163]
[1729088508865,6.4049,156.14,156.09,22.4227]
[1729088509068,6.4049,156.13,156.09,16.0163]
[1729088509878,6.4053,156.12,156.08,6.4068]
[1729088510381,6.4053,156.12,156.06,28.7808]
[1729088510584,16.0093,156.16,156.06,28.7808]
[1729088510585,6.4062,156.1,156.06,16.0191]
[1729088510800,6.4058,156.11,156.06,22.4268]
[1729088511004,6.4044,156.15,156.08,16.0167]
[1729088511296,6.4044,156.15,156.1,6.4057]
[1729088511679,6.4126,156.17,156.08,16.0167]
[1729088511871,6.4059,156.11,156.06,6.4074]
[1729088512071,22.4215,156.17,156.05,20.0]
[1729088512478,6.4057,156.12,156.07,7.0468282]
[1729088513299,22.4215,156.17,156.07,0.6396282]
[1729088513472,6.4057,156.11,156.07,0.6396282]
[1729088514097,16.111,156.15,156.07,0.6396282]
[1729088514299,16.011,156.15,156.07,0.6396282]
[1729088514503,6.4057,156.11,156.07,0.6396282]
[1729088514796,6.4052,156.13,156.08,22.4239]
[1729088514996,6.4053,156.12,156.08,22.4239]
[1729088515198,6.405,156.13,156.08,22.4239]
[1729088516694,23.776884,156.16,156.08,16.0171]
[1729088516894,6.4045,156.14,156.1,6.406]
[1729088517070,6.4126,156.17,156.1,6.406]
[1729088517271,6.4046,156.14,156.09,6.4061]
[1729088517483,6.4039,156.16,156.1,16.0145]
[1729088517690,6.4039,156.16,156.12,6.4052]
[1729088518107,6.4032,156.18,156.13,6.4049]
[1729088518398,6.4032,156.18,156.14,6.4042]
[1729088518599,15.5153,156.19,156.14,6.4042]
[1729088518600,6.4025,156.19,156.14,6.4042]
[1729088519289,23.06040949,156.24,156.12,32.0251]
[1729088519476,23.06040949,156.24,156.17,6.403]
[1729088519683,6.4016,156.21,156.16,16.0087]
[1729088520285,6.4016,156.21,156.16,22.412]
[1729088520499,23.06040949,156.24,156.13,16.0119]
[1729088520674,23.776884,156.23,156.13,16.0119]
[1729088520877,23.776884,156.21,156.13,22.4167]
[1729088521077,6.4029,156.18,156.14,6.4044]
[1729088521280,6.4029,156.18,156.13,22.4167]
[1729088521589,6.4029,156.18,156.14,6.4044]
[1729088521986,6.4024,156.19,156.14,6.4044]
[1729088522301,6.4033,156.17,156.13,22.4167]
[1729088522679,6.4037,156.16,156.13,16.0119]
[1729088523202,23.776884,156.21,156.1,16.0148]
[1729088523203,6.4041,156.15,156.1,16.0148]
[1729088523408,6.4041,156.15,156.1,22.4207]
[1729088523580,16.007,156.19,156.1,22.4207]
[1729088523786,6.4045,156.14,156.1,22.4207]
[1729088524014,16.0087,156.17,156.08,6.4066]
[1729088524208,6.4057,156.12,156.08,6.4068]
[1729088524708,6.4046,156.14,156.09,6.4062]
[1729088524905,6.4041,156.15,156.09,16.0155]
[1729088525114,6.4041,156.15,156.1,6.406]
[1729088525412,6.4044,156.15,156.1,6.406]
[1729088525812,16.0083,156.17,156.09,16.0155]
[1729088525992,6.4048,156.14,156.09,22.422]
[1729088526193,6.4048,156.14,156.1,6.406]
[1729088526517,6.4034,156.17,156.12,6.405]
[1729088526700,16.0056,156.2,156.1,6.406]
[1729088526701,6.4044,156.15,156.1,6.406]
[1729088526903,6.4044,156.15,156.1,22.4208]
[1729088527492,6.4044,156.15,156.11,6.4056]
[1729088527818,16.0056,156.2,156.1,16.0148]
[1729088527819,6.4045,156.14,156.1,16.0148]
[1729088528122,6.4045,156.14,156.1,22.4208]
[1729088528292,6.404,156.16,156.11,6.4057]
[1729088528495,6.4021,156.2,156.1,6.4492]
[1729088528707,16.0026,156.23,156.1,6.4492]
[1729088529008,6.4029,156.18,156.13,6.4048]
[1729088529219,6.4029,156.18,156.14,6.4043]
[1729088529520,16.0026,156.23,156.13,22.4165]
[1729088530206,6.4021,156.2,156.15,6.4038]
[1729088530515,23.06040949,156.24,156.16,6.4035]
[1729088530516,6.4017,156.21,156.16,6.4035]
[1729088530817,6.4021,156.2,156.15,16.0096]
[1729088531003,6.404,156.16,156.12,16.0131]
[1729088531591,6.4034,156.17,156.12,22.4183]
[1729088532317,6.4034,156.17,156.1,6.4492]
[1729088532318,6.4037,156.16,156.11,22.419]
[1729088532714,6.4048,156.14,156.09,6.4064]
[1729088532893,16.0076,156.18,156.09,6.4065]
[1729088533094,6.405,156.13,156.09,6.4065]
[1729088533423,16.0076,156.18,156.08,16.0168]
[1729088533599,6.4058,156.11,156.07,7.0469282]
[1729088533799,6.4054,156.12,156.07,7.0469282]
[1729088534491,6.4059,156.11,156.07,7.0469282]
[1729088534695,6.4059,156.11,156.07,0.6396282]
[1729088536396,21.6325,156.16,156.07,0.6396282]
[1729088536596,6.4067,156.09,156.07,0.6396282]
[1729088536916,16.0115,156.14,156.07,0.6396282]
[1729088537215,6.4069,156.08,156.07,0.6396282]
[1729088537422,6.4069,156.08,155.98,6.4107]
[1729088537423,6.4091,156.03,155.98,6.4107]
[1729088537722,23.776884,156.06,155.93,38.6761]
[1729088537902,6.4106,155.99,155.94,6.4126]
[1729088538311,6.4111,155.98,155.93,6.4131]
[1729088538810,6.4107,155.99,155.94,6.4125]
[1729088539118,6.4118,155.97,155.92,16.0328]
[1729088539328,6.4123,155.95,155.91,0.6396282]
[1729088539513,23.776884,155.98,155.91,0.6396282]
[1729088539718,6.4127,155.94,155.91,0.6396282]
[1729088539918,43.776884,155.97,155.91,0.6396282]
[1729088540122,6.4135,155.92,155.91,0.6396282]
[1729088540818,30.190384,155.92,155.91,0.6396282]
[1729088541022,23.776884,155.91,155.84,16.041]
[1729088541321,36.1289,155.97,155.84,16.041]
[1729088541322,36.0289,155.97,155.84,16.041]
[1729088541526,6.4136,155.92,155.85,6.4164]
[1729088541826,6.4131,155.93,155.87,6.4155]
[1729088542031,23.776884,155.94,155.82,6.611]
[1729088542213,6.4148,155.89,155.83,6.417]
[1729088542418,0.1,155.92,155.78,6.1363]
[1729088542618,0.1,155.92,155.79,6.4185]
[1729088542619,6.4162,155.86,155.79,6.4185]
[1729088542819,6.421,155.9,155.77,16.0484]
[1729088542820,43.776884,155.88,155.77,16.0484]
[1729088543119,0.1,155.86,155.76,0.6396282]
[1729088543432,6.4189,155.79,155.76,0.6396282]
[1729088543729,6.4182,155.81,155.76,0.6396282]
[1729088543940,6.4189,155.79,155.76,0.6396282]
[1729088544430,6.4194,155.78,155.76,0.6396282]
[1729088544634,6.4186,155.8,155.76,0.6396282]
[1729088544937,26.4174,155.83,155.77,6.4195]
[1729088545307,20.0,155.83,155.76,7.0597282]
[1729088545721,16.6532,155.89,155.78,6.4192]
[1729088545934,43.876884,155.88,155.76,0.6396282]
[1729088546122,26.4156,155.88,155.81,6.4178]
[1729088546523,22.8681,155.89,155.82,6.4175]
[1729088546724,22.8681,155.89,155.81,16.0445]
[1729088546725,16.4532,155.89,155.84,6.4166]
[1729088546909,6.62923136,155.91,155.84,16.0417]
[1729088547113,6.4131,155.93,155.87,6.4155]
[1729088547321,6.4136,155.92,155.86,6.4159]
[1729088547731,15.974,155.94,155.84,16.0417]
[1729088547973,6.4131,155.93,155.87,6.4155]
[1729088548918,12.6107,155.95,155.87,16.0389]
[1729088549123,6.1983,155.95,155.91,6.4139]
[1729088549438,6.1983,155.95,155.89,6.4144]
[1729088549637,13.03929059,155.97,155.85,32.0806]
[1729088549638,6.62779059,155.97,155.85,32.0806]
[1729088549851,6.62779059,155.97,155.95,6.4122]
[1729088550022,6.4098,156.01,155.94,6.4123]
[1729088550726,6.4098,156.02,155.95,6.4122]
[1729088551110,20.0,156.01,155.95,6.4122]
[1729088551316,6.62980559,156.03,155.98,6.4107]
[1729088551743,6.62980559,156.03,155.96,6.4118]
[1729088551744,6.4095,156.02,155.96,6.4118]